Workbook

Sheet Hárok1
A1: Příklad breakout systému - mena GBP/JPY | W1: =IF(X9=1,IF(X10=1,"počítam všetky obchody","počítam SELL obchody"),IF(X10=1,"počítam BUY obchody","nie sú vybraté žiadne obchody")) -> počítam SELL obchody | X1: =IF(X7>0,"a pevný PT","a PT ako násobok veľkosti sviečky") -> a PT ako násobok veľkosti sviečky
A2: popis systému | C2: vlastné zmeny
A3: Deň | B3: H | C3: L | D3: MFEB100 | E3: MFES100 | F3: PIPS | G3: BS | H3: PTB | I3: SLB | J3: SS | K3: PTS | L3: SLS | M3: VstupB | N3: ZiskB | O3: VstupS | P3: ZiskS | Q3: ZISK | R3: Equity | S3: MFEB2 | T3: MFEB100 | U3: MFES2 | V3: MFES100 | W3: Spread | X3: 7 | Y3: pips
A4: 2006-09-18 | B4: 221.74 | C4: 221.4 | D4: 222.23 | E4: 221.25 | F4: =(B4-C4)*100 -> 34 | G4: =+B4+0.1 -> 221.84 | H4: =+B4+$X$4*F4/100 -> 222.862 | I4: =IF($F4+10+10>$X$8,G4-$X$8/100,G4-($F4+10+10)/100) -> 221.3 | J4: =+C4-0.1 -> 221.3 | K4: =+C4-$X$4*F4/100 -> 220.278 | L4: =IF($F4+10+10>$X$8,J4+$X$8/100,J4+($F4+10+10)/100) -> 221.84 | M4: =IF(AND(H4<>"",D4>G4,D4>0,F4<$X$6,F4>$X$5),1,0) -> 0 | N4: =IF($M4=0,0,IF($X$7>0,IF($D4>G4+($X$7+$X$3)/100,$X$7-$X$3,($I4-$G4)*100-$X$3),IF($D4>$H4,($H4-$G4)*100-$X$3,($I4-$G4)*100-$X$3))) -> 0 | O4: =IF(AND(H4<>"",J4>E4,E4>0,F4<$X$6,F4>$X$5),1,0) -> 0 | P4: =IF(O4=0,0,IF($X$7>0,IF($E4<J4-($X$7+$X$3)/100,$X$7-$X$3,(J4-L4)*100-$X$3),IF(E4<K4,(J4-K4)*100-$X$3,(J4-L4)*100-$X$3))) -> 0 | Q4: =IF($X$9=1,IF($X$10=1,P4+N4,P4),IF($X$10=1,N4,0)) -> 0 | R4: =+Q4 -> 0 | U4: 213.56 | V4: 213.56 | W4: PT násobok veľkosti sviečky | X4: 3.3
A5: 2006-09-25 | B5: 221.69 | C5: 221.37 | D5: 222.06 | E5: 221.12 | F5: =(B5-C5)*100 -> 32 | G5: =+B5+0.1 -> 221.79 | H5: 222.746 | I5: 221.27 | J5: 221.27 | K5: 220.314 | L5: 221.79 | M5: =IF(AND(H5<>"",D5>G5,D5>0,F5<$X$6,F5>$X$5),1,0) -> 0 | N5: 0 | O5: =IF(AND(H5<>"",J5>E5,E5>0,F5<$X$6,F5>$X$5),1,0) -> 0 | P5: 0 | Q5: 0 | R5: =+R4+Q5 -> 0 | S5: 217.3 | T5: 217.3 | W5: brať len sviečky väčšie ako | X5: 40
A6: 2006-10-02 | B6: 221.3 | C6: 220.89 | D6: 222.93 | F6: 41 | G6: 221.4 | H6: 222.653 | I6: 220.79 | J6: 220.79 | K6: 219.537 | L6: 221.4 | M6: 1 | N6: 118.3 | O6: 0 | P6: 0 | Q6: 0 | R6: =+R5+Q6 -> 0 | U6: 206.99 | V6: 206.99 | W6: brať len sviečky menšie ako | X6: 220
A7: 2006-10-09 | B7: 222.96 | C7: 222.22 | D7: 223.13 | E7: 221.48 | F7: 74 | G7: 223.06 | H7: 225.402 | I7: 222.12 | J7: 222.12 | K7: 219.778 | L7: 223.06 | M7: 1 | N7: -101 | O7: 1 | P7: -101 | Q7: -101 | R7: -101 | U7: 204.71 | V7: 204.71 | W7: Pevný PT | X7: 0
A8: 2006-10-16 | B8: 222 | C8: 221.82 | D8: 222.19 | E8: 221.4 | F8: 18 | G8: 222.1 | H8: 222.594 | I8: 221.72 | J8: 221.72 | K8: 221.226 | L8: 222.1 | M8: 0 | N8: 0 | O8: 0 | P8: 0 | Q8: 0 | R8: -101 | S8: 212.7 | T8: 212.7 | U8: 209.37 | V8: 209.37 | W8: Max SL | X8: 100
A9: 2006-10-23 | B9: 223.65 | C9: 223.32 | D9: 223.79 | E9: 222.99 | F9: 33 | G9: 223.75 | H9: 224.739 | I9: 223.22 | J9: 223.22 | K9: 222.231 | L9: 223.75 | M9: 0 | N9: 0 | O9: 0 | P9: 0 | Q9: 0 | R9: -101 | S9: 212.09 | T9: 212.09 | W9: SELL obchody | X9: 1
A10: 2006-10-30 | B10: 222.81 | C10: 222.43 | D10: 224.52 | F10: 38 | G10: 222.91 | H10: 224.064 | I10: 222.33 | J10: 222.33 | K10: 221.176 | L10: 222.91 | M10: 0 | N10: 0 | O10: 0 | P10: 0 | Q10: 0 | R10: -101 | S10: 209.91 | T10: 209.91 | U10: 206.79 | V10: 206.79 | W10: BUY obchody | X10: 0
A11: 2006-11-06 | B11: 224.43 | C11: 224.21 | D11: 224.65 | E11: 224.08 | F11: 22 | G11: 224.53 | H11: 225.156 | I11: 224.11 | J11: 224.11 | K11: 223.484 | L11: 224.53 | M11: 0 | N11: 0 | O11: 0 | P11: 0 | Q11: 0 | R11: -101 | S11: 211.79 | T11: 211.78 | U11: 208.74 | V11: 208.74 | W11: Equity | X11: =+R251 -> 9868.1
A12: 2006-11-13 | B12: 224.48 | C12: 224.26 | D12: 224.76 | E12: 223.82 | F12: 22 | G12: 224.58 | H12: 225.206 | I12: 224.16 | J12: 224.16 | K12: 223.534 | L12: 224.58 | M12: 0 | N12: 0 | O12: 0 | P12: 0 | Q12: 0 | R12: -101 | S12: 211.85 | T12: 211.85 | U12: 210.44 | V12: 210.44 | W12: Počet dní | X12: =COUNT(A4:A10001) -> 157
A13: 2006-11-20 | B13: 223.48 | C13: 223.13 | D13: 224.26 | F13: 35 | G13: 223.58 | H13: 224.635 | I13: 223.03 | J13: 223.03 | K13: 221.975 | L13: 223.58 | M13: 0 | N13: 0 | O13: 0 | P13: 0 | Q13: 0 | R13: -101 | S13: 207.95 | T13: 207.95 | U13: 203.48 | V13: 203.48 | W13: Počet obchodov | X13: =SUM($M$4:$M$10001,$O$4:$O$10001) -> 180
A14: 2006-11-27 | B14: 224.97 | C14: 224.23 | D14: 229.03 | F14: 74 | G14: 225.07 | H14: 227.412 | I14: 224.13 | J14: 224.13 | K14: 221.788 | L14: 225.07 | M14: 1 | N14: 227.2 | O14: 0 | P14: 0 | Q14: 0 | R14: -101 | S14: 207.96 | T14: 207.96 | U14: 203.57 | V14: 203.57 | W14: ziskových | X14: =COUNTIF($N$4:$N$10001,">0")+COUNTIF($P$4:$P$10001,">0") -> 74 | Y14: =+X14/$X$13 -> 0.4111111111
A15: 2006-12-04 | B15: 228.97 | C15: 228.4 | E15: 225.7 | F15: 57 | G15: 229.07 | H15: 230.851 | I15: 228.3 | J15: 228.3 | K15: 226.519 | L15: 229.07 | M15: 0 | N15: 0 | O15: 1 | P15: 171.1 | Q15: 171.1 | R15: 70.1 | S15: 201.79 | T15: 201.79 | U15: 192.52 | V15: 192.52 | W15: stratových | X15: =COUNTIF($N$4:$N$10001,"<0")+COUNTIF($P$4:$P$10001,"<0") -> 106 | Y15: =+X15/$X$13 -> 0.5888888889
A16: 2006-12-11 | B16: 227.61 | C16: 227.11 | D16: 231.77 | F16: 50 | G16: 227.71 | H16: 229.26 | I16: 227.01 | J16: 227.01 | K16: 225.46 | L16: 227.71 | M16: 1 | N16: 148 | O16: 0 | P16: 0 | Q16: 0 | R16: 70.1 | S16: 201.72 | T16: 201.72 | W16: Počet obchodov BUY | X16: =SUM($M$4:$M$10001) -> 86
A17: 2006-12-18 | B17: 230.84 | C17: 230.52 | D17: 231.97 | E17: 229.39 | F17: 32 | G17: 230.94 | H17: 231.896 | I17: 230.42 | J17: 230.42 | K17: 229.464 | L17: 230.94 | M17: 0 | N17: 0 | O17: 0 | P17: 0 | Q17: 0 | R17: 70.1 | S17: 205.11 | T17: 205.11 | W17: ziskových BUY | X17: =COUNTIF($N$4:$N$10001,">0") -> 28 | Y17: =+X17/$X$16 -> 0.3255813953
A18: 2006-12-25 | B18: 232.62 | C18: 232.4 | D18: 234.51 | F18: 22 | G18: 232.72 | H18: 233.346 | I18: 232.3 | J18: 232.3 | K18: 231.674 | L18: 232.72 | M18: 0 | N18: 0 | O18: 0 | P18: 0 | Q18: 0 | R18: 70.1 | S18: 204.42 | T18: 204.42 | U18: 198.05 | V18: 198.05 | W18: stratových BUY | X18: =COUNTIF($N$4:$N$10001,"<0") -> 58 | Y18: =+X18/$X$16 -> 0.6744186047
A19: 2007-01-02 | B19: 234.13 | C19: 233.13 | D19: 234.82 | E19: 228.57 | F19: 100 | G19: 234.23 | H19: 237.43 | I19: 233.23 | J19: 233.03 | K19: 229.83 | L19: 234.03 | M19: 1 | N19: -107 | O19: 1 | P19: 313 | Q19: 313 | R19: 383.1 | S19: 200.36 | T19: 200.36 | U19: 198.06 | V19: 198.06 | W19: Počet obchodov SELL | X19: =SUM($O$4:$O$10001) -> 94
A20: 2007-01-08 | B20: 228.51 | C20: 228.05 | D20: 235.9 | F20: 46 | G20: 228.61 | H20: 230.028 | I20: 227.95 | J20: 227.95 | K20: 226.532 | L20: 228.61 | M20: 1 | N20: 134.8 | O20: 0 | P20: 0 | Q20: 0 | R20: 383.1 | U20: 203.33 | V20: 203.33 | W20: ziskových SELL | X20: =COUNTIF($P$4:$P$10001,">0") -> 46 | Y20: =+X20/$X$19 -> 0.4893617021
A21: 2007-01-15 | B21: 235.9 | C21: 235.29 | D21: 239.99 | F21: 61 | G21: 236 | H21: 237.913 | I21: 235.19 | J21: 235.19 | K21: 233.277 | L21: 236 | M21: 1 | N21: 184.3 | O21: 0 | P21: 0 | Q21: 0 | R21: 383.1 | S21: 207.82 | T21: 207.82 | U21: 206.73 | V21: 206.73 | W21: stratových SELL | X21: =COUNTIF($P$4:$P$10001,"<0") -> 48 | Y21: =+X21/$X$19 -> 0.5106382979
A22: 2007-01-22 | B22: 239.68 | C22: 239.51 | D22: 241.47 | F22: 17 | G22: 239.78 | H22: 240.241 | I22: 239.41 | J22: 239.41 | K22: 238.949 | L22: 239.78 | M22: 0 | N22: 0 | O22: 0 | P22: 0 | Q22: 0 | R22: 383.1 | S22: 208.29 | T22: 208.29 | U22: 199.77 | V22: 199.77 | W22: Max zisk | X22: =MAX($Q$4:$Q$10001) -> 699.1
A23: 2007-01-29 | B23: 238.57 | C23: 238.31 | D23: 239.15 | F23: 26 | G23: 238.67 | H23: 239.428 | I23: 238.21 | J23: 238.21 | K23: 237.452 | L23: 238.67 | M23: 0 | N23: 0 | O23: 0 | P23: 0 | Q23: 0 | R23: 383.1 | S23: 204.96 | T23: 204.96 | W23: Max strata | X23: =MIN($Q$4:$Q$10001) -> -107
A24: 2007-02-05 | B24: 237.55 | C24: 237.12 | E24: 235.35 | F24: 43 | G24: 237.65 | H24: 238.969 | I24: 237.02 | J24: 237.02 | K24: 235.701 | L24: 237.65 | M24: 0 | N24: 0 | O24: 1 | P24: 124.9 | Q24: 124.9 | R24: 508 | S24: 204.75 | T24: 204.75 | U24: 202.7 | V24: 202.7
A25: 2007-02-12 | B25: 238.22 | C25: 237.95 | D25: 238.49 | E25: 237.38 | F25: 27 | G25: 238.32 | H25: 239.111 | I25: 237.85 | J25: 237.85 | K25: 237.059 | L25: 238.32 | M25: 0 | N25: 0 | O25: 0 | P25: 0 | Q25: 0 | R25: 508 | S25: 209.34 | T25: 209.34
A26: 2007-02-19 | B26: 233.55 | C26: 233.15 | D26: 233.8 | E26: 232.09 | F26: 40 | G26: 233.65 | H26: 234.87 | I26: 233.05 | J26: 233.05 | K26: 231.83 | L26: 233.65 | M26: 1 | N26: -67 | O26: 1 | P26: -67 | Q26: -67 | R26: 441 | U26: 203.96 | V26: 203.96
A27: 2007-02-26 | B27: 237.45 | C27: 237.21 | E27: 226.53 | F27: 24 | G27: 237.55 | H27: 238.242 | I27: 237.11 | J27: 237.11 | K27: 236.418 | L27: 237.55 | M27: 0 | N27: 0 | O27: 0 | P27: 0 | Q27: 0 | R27: 441 | S27: 210.88 | T27: 210.88
A28: 2007-03-05 | B28: 223.97 | C28: 222.65 | D28: 228.72 | E28: 221.08 | F28: =(B28-C28)*100 -> 132 | G28: =+B28+0.1 -> 224.07 | H28: 228.326 | I28: 223.07 | J28: =+C28-0.1 -> 222.55 | K28: 218.294 | L28: 223.55 | M28: 1 | N28: 418.6 | O28: 1 | P28: -107 | Q28: -107 | R28: =+R27+Q28 -> 334 | S28: 213.27 | T28: 213.27
A29: 2007-03-12 | B29: 228.84 | C29: 228.46 | D29: 229.66 | E29: 222.62 | F29: 38 | G29: 228.94 | H29: 230.094 | I29: 228.36 | J29: 228.36 | K29: 227.206 | L29: 228.94 | M29: 0 | N29: 0 | O29: 0 | P29: 0 | Q29: 0 | R29: 334 | S29: 213.89 | T29: 213.89 | U29: 211.07 | V29: 211.07
A30: 2007-03-19 | B30: 227.95 | C30: 225.38 | D30: 232.34 | F30: 257 | G30: 228.05 | H30: 236.431 | I30: 227.05 | J30: 225.28 | K30: 216.899 | L30: 226.28 | M30: 0 | N30: 0 | O30: 0 | P30: 0 | Q30: 0 | R30: 334 | U30: 209.42 | V30: 209.42
A31: 2007-03-26 | B31: 231.64 | C31: 230.87 | D31: 232.98 | F31: 77 | G31: 231.74 | H31: 234.181 | I31: 230.77 | J31: 230.77 | K31: 228.329 | L31: 231.74 | M31: 1 | N31: -104 | O31: 0 | P31: 0 | Q31: 0 | R31: 334 | S31: 212.4 | T31: 212.4 | U31: 210.21 | V31: 210.21
A32: 2007-04-02 | B32: 232.2 | C32: 231.22 | D32: 235.08 | F32: 98 | G32: 232.3 | H32: 235.434 | I32: 231.3 | J32: 231.12 | K32: 227.986 | L32: 232.12 | M32: 1 | N32: -107 | O32: 0 | P32: 0 | Q32: 0 | R32: 334 | S32: 212.25 | T32: 212.25 | U32: 207.97 | V32: 207.97
A33: 2007-04-09 | B33: 234.51 | C33: 234.33 | D33: 236.95 | E33: 233.64 | F33: 18 | G33: 234.61 | H33: 235.104 | I33: 234.23 | J33: 234.23 | K33: 233.736 | L33: 234.61 | M33: 0 | N33: 0 | O33: 0 | P33: 0 | Q33: 0 | R33: 334 | S33: 215.84 | T33: 215.84 | U33: 212.12 | V33: 212.12
A34: 2007-04-16 | B34: 237.85 | C34: 236.37 | D34: 239.41 | F34: 148 | G34: 237.95 | H34: 242.734 | I34: 236.95 | J34: 236.27 | K34: 231.486 | L34: 237.27 | M34: 1 | N34: -107 | O34: 0 | P34: 0 | Q34: 0 | R34: 334 | U34: 211.98 | V34: 211.98
A35: 2007-04-23 | B35: 238.31 | C35: 237.84 | E35: 235.94 | F35: 47 | G35: 238.41 | H35: 239.861 | I35: 237.74 | J35: 237.74 | K35: 236.289 | L35: 238.41 | M35: 0 | N35: 0 | O35: 1 | P35: 138.1 | Q35: 138.1 | R35: 472.1 | S35: 213.89 | T35: 213.89 | U35: 210.56 | V35: 210.56
A36: 2007-04-30 | B36: 238.48 | C36: 237.77 | D36: 239.73 | F36: 71 | G36: 238.58 | H36: =+B36+$X$4*F36/100 -> 240.823 | I36: 237.67 | J36: 237.67 | K36: =+C36-$X$4*F36/100 -> 235.427 | L36: 238.58 | M36: 1 | N36: -98 | O36: 0 | P36: 0 | Q36: 0 | R36: 472.1 | S36: 211.52 | T36: 211.52 | U36: 202.48 | V36: 202.48
A37: 2007-05-07 | B37: 239.57 | C37: 239.2 | E37: 238.03 | F37: 37 | G37: 239.67 | H37: 240.791 | I37: 239.1 | J37: 239.1 | K37: 237.979 | L37: 239.67 | M37: 0 | N37: 0 | O37: 0 | P37: 0 | Q37: 0 | R37: 472.1 | S37: 206.23 | T37: 206.23 | U37: 201.76 | V37: 201.76
A38: 2007-05-14 | B38: 238.4 | C38: 238.03 | D38: 238.67 | E38: 237.89 | F38: 37 | G38: 238.5 | H38: 239.621 | I38: 237.93 | J38: 237.93 | K38: 236.809 | L38: 238.5 | M38: 0 | N38: 0 | O38: 0 | P38: 0 | Q38: 0 | R38: 472.1 | U38: 197.6 | V38: 197.6
A39: 2007-05-21 | B39: 239.44 | C39: 239.01 | D39: 241.85 | F39: 43 | G39: 239.54 | H39: 240.859 | I39: 238.91 | J39: 238.91 | K39: 237.591 | L39: 239.54 | M39: 1 | N39: 124.9 | O39: 0 | P39: 0 | Q39: 0 | R39: 472.1 | U39: 186.14 | V39: 186.14
A40: 2007-05-28 | B40: 241.64 | C40: 241.35 | E40: 239.74 | F40: 29 | G40: 241.74 | H40: 242.597 | I40: 241.25 | J40: 241.25 | K40: 240.393 | L40: 241.74 | M40: 0 | N40: 0 | O40: 0 | P40: 0 | Q40: 0 | R40: 472.1 | U40: 185.87 | V40: 185.87
A41: 2007-06-04 | B41: 242.13 | C41: 241.82 | D41: 242.97 | E41: 241.64 | F41: 31 | G41: 242.23 | H41: 243.153 | I41: 241.72 | J41: 241.72 | K41: 240.797 | L41: 242.23 | M41: 0 | N41: 0 | O41: 0 | P41: 0 | Q41: 0 | R41: 472.1 | U41: 184.47 | V41: 184.47
A42: 2007-06-11 | B42: 239.79 | C42: 238.97 | D42: 244.34 | F42: 82 | G42: 239.89 | H42: 242.496 | I42: 238.89 | J42: 238.87 | K42: 236.264 | L42: 239.87 | M42: 1 | N42: 253.6 | O42: 0 | P42: 0 | Q42: 0 | R42: 472.1 | S42: 197.41 | T42: 197.41 | U42: 194.27 | V42: 194.27
A43: 2007-06-18 | B43: 244.27 | C43: 243.87 | D43: 247.52 | F43: 40 | G43: 244.37 | H43: 245.59 | I43: 243.77 | J43: 243.77 | K43: 242.55 | L43: 244.37 | M43: 1 | N43: 115 | O43: 0 | P43: 0 | Q43: 0 | R43: 472.1 | U43: 184.68 | V43: 184.68
A44: 2007-06-25 | B44: 247.69 | C44: 247.02 | E44: 243.98 | F44: 67 | G44: 247.79 | H44: 249.901 | I44: 246.92 | J44: 246.92 | K44: 244.809 | L44: 247.79 | M44: 0 | N44: 0 | O44: 1 | P44: 204.1 | Q44: 204.1 | R44: 676.2 | U44: 166.04 | V44: 166.04
A45: 2007-07-02 | B45: 247.59 | C45: 246.85 | E45: 246.02 | F45: 74 | G45: 247.69 | H45: 250.032 | I45: 246.75 | J45: 246.75 | K45: 244.408 | L45: 247.69 | M45: 0 | N45: 0 | O45: 1 | P45: -101 | Q45: -101 | R45: 575.2 | S45: 181.36 | T45: 181.36 | U45: 170.2 | V45: 170.2
A46: 2007-07-09 | B46: 248.4 | C46: 248.12 | D46: 248.76 | E46: 247.36 | F46: =(B46-C46)*100 -> 28 | G46: =+B46+0.1 -> 248.5 | H46: 249.324 | I46: 248.02 | J46: =+C46-0.1 -> 248.02 | K46: 247.196 | L46: 248.5 | M46: 0 | N46: 0 | O46: 0 | P46: 0 | Q46: 0 | R46: =+R45+Q46 -> 575.2 | S46: 179.18 | T46: 179.18 | U46: 138.98 | V46: 138.98
A47: 2007-07-16 | B47: 248.34 | C47: 247.6 | D47: 251.08 | F47: 74 | G47: 248.44 | H47: 250.782 | I47: 247.5 | J47: 247.5 | K47: 245.158 | L47: 248.44 | M47: 1 | N47: 227.2 | O47: 0 | P47: 0 | Q47: 0 | R47: 575.2 | S47: 151.29 | T47: 151.29 | U47: 140.63 | V47: 140.63
A48: 2007-07-23 | B48: 250.17 | C48: 248.81 | E48: 239.73 | F48: 136 | G48: 250.27 | H48: 254.658 | I48: 249.27 | J48: 248.71 | K48: 244.322 | L48: 249.71 | M48: 0 | N48: 0 | O48: 1 | P48: 431.8 | Q48: 431.8 | R48: 1007 | S48: 163.31 | T48: 163.31 | U48: 153.69 | V48: 153.69
A49: 2007-07-30 | B49: 239.87 | C49: 238.28 | D49: 242.26 | F49: 159 | G49: 239.97 | H49: 245.117 | I49: 238.97 | J49: 238.18 | K49: 233.033 | L49: 239.18 | M49: 1 | N49: -107 | O49: 0 | P49: 0 | Q49: 0 | R49: 1007 | U49: 145.82 | V49: 145.82
A50: 2007-08-06 | B50: 240.4 | C50: 239.15 | D50: 240.7 | E50: 238.9 | F50: 125 | G50: 240.5 | H50: 244.525 | I50: 239.5 | J50: 239.05 | K50: 235.025 | L50: 240.05 | M50: 1 | N50: -107 | O50: 1 | P50: -107 | Q50: -107 | R50: 900 | S50: 147.87 | T50: 147.87
A51: 2007-08-13 | B51: 239.68 | C51: 238.82 | E51: 219.29 | F51: 86 | G51: 239.78 | H51: 242.518 | I51: 238.78 | J51: 238.72 | K51: 235.982 | L51: 239.72 | M51: 0 | N51: 0 | O51: 1 | P51: 266.8 | Q51: 266.8 | R51: 1166.8 | S51: 148.58 | T51: 148.58
A52: 2007-08-20 | B52: 226.74 | C52: 224.85 | D52: 234.88 | F52: 189 | G52: 226.84 | H52: 232.977 | I52: 225.84 | J52: 224.75 | K52: 218.613 | L52: 225.75 | M52: 1 | N52: 606.7 | O52: 0 | P52: 0 | Q52: 0 | R52: 1166.8 | U52: 134.12 | V52: 134.12
A53: 2007-08-27 | B53: 235.5 | C53: 234.2 | E53: 227.43 | F53: 130 | G53: 235.6 | H53: 239.79 | I53: 234.6 | J53: 234.1 | K53: 229.91 | L53: 235.1 | M53: 0 | N53: 0 | O53: 1 | P53: 412 | Q53: 412 | R53: 1578.8 | S53: 140.74 | T53: 140.74
A54: 2007-09-10 | B54: 229.34 | C54: 228.25 | D54: 234.77 | F54: 109 | G54: 229.44 | H54: 232.937 | I54: 228.44 | J54: 228.15 | K54: 224.653 | L54: 229.15 | M54: 1 | N54: 342.7 | O54: 0 | P54: 0 | Q54: 0 | R54: 1578.8 | S54: 139.21 | T54: 139.21 | U54: 135.28 | V54: 135.28
A55: 2007-09-17 | B55: 231.53 | C55: 230.8 | D55: 231.65 | E55: 228.2 | F55: 73 | G55: 231.63 | H55: 233.939 | I55: 230.7 | J55: 230.7 | K55: 228.391 | L55: 231.63 | M55: 1 | N55: -100 | O55: 1 | P55: 223.9 | Q55: 223.9 | R55: 1802.7 | U55: 132.05 | V55: 132.05
A56: 2007-09-24 | B56: 233.24 | C56: 232.73 | D56: 233.55 | E56: 232.39 | F56: 51 | G56: 233.34 | H56: 234.923 | I56: 232.63 | J56: 232.63 | K56: 231.047 | L56: 233.34 | M56: 1 | N56: -78 | O56: 1 | P56: -78 | Q56: -78 | R56: 1724.7 | U56: 129.83 | V56: 129.83
A57: 2007-10-01 | B57: 235.09 | C57: 234.69 | D57: 238.99 | F57: 40 | G57: 235.19 | H57: 236.41 | I57: 234.59 | J57: 234.59 | K57: 233.37 | L57: 235.19 | M57: 1 | N57: 115 | O57: 0 | P57: 0 | Q57: 0 | R57: 1724.7 | S57: 141.54 | T57: 141.54 | U57: 132.84 | V57: 132.84
A58: 2007-10-03 | B58: 233.87 | C58: 233.03 | D58: 234.54 | E58: 231.92 | F58: 84 | G58: 233.97 | H58: 236.642 | I58: 232.97 | J58: 232.93 | K58: 230.258 | L58: 233.93 | M58: 1 | N58: -107 | O58: 1 | P58: -107 | Q58: -107 | R58: 1617.7 | U58: 128.82 | V58: 128.82
A59: 2007-10-08 | B59: 239.2 | C59: 238.74 | D59: 239.71 | E59: 238.57 | F59: 46 | G59: 239.3 | H59: 240.718 | I59: 238.64 | J59: 238.64 | K59: 237.222 | L59: 239.3 | M59: 1 | N59: -73 | O59: 1 | P59: -73 | Q59: -73 | R59: 1544.7 | U59: 119.4 | V59: 119.4
A60: 2007-10-15 | B60: 239.31 | C60: 238.88 | D60: 240.66 | E60: 235.85 | F60: 43 | G60: 239.41 | H60: 240.729 | I60: 238.78 | J60: 238.78 | K60: 237.461 | L60: 239.41 | M60: 1 | N60: -70 | O60: 1 | P60: 124.9 | Q60: 124.9 | R60: 1669.6 | S60: 129.69 | T60: 129.69
A61: 2007-10-22 | B61: 234.45 | C61: 232.21 | D61: 235.81 | E61: 230.3 | F61: 224 | G61: 234.55 | H61: 241.842 | I61: 233.55 | J61: 232.11 | K61: 224.818 | L61: 233.11 | M61: 0 | N61: 0 | O61: 0 | P61: 0 | Q61: 0 | R61: 1669.6 | S61: 130.66 | T61: 130.66 | U61: 125.3 | V61: 125.3
A62: 2007-10-29 | B62: 234.68 | C62: 234.18 | D62: 241.35 | F62: 50 | G62: 234.78 | H62: 236.33 | I62: 234.08 | J62: 234.08 | K62: 232.53 | L62: 234.78 | M62: 1 | N62: 148 | O62: 0 | P62: 0 | Q62: 0 | R62: 1669.6 | U62: 127.11 | V62: 127.11
A63: 2007-11-05 | B63: 239.76 | C63: 238.74 | E63: 235.2 | F63: 102 | G63: 239.86 | H63: 243.126 | I63: 238.86 | J63: 238.64 | K63: 235.374 | L63: 239.64 | M63: 0 | N63: 0 | O63: 1 | P63: 319.6 | Q63: 319.6 | R63: 1989.2 | S63: 131.43 | T63: 131.43 | U63: 129.62 | V63: 129.62
A64: 2007-11-12 | B64: 231.01 | C64: 229.54 | E64: 224.16 | F64: 147 | G64: 231.11 | H64: 235.861 | I64: 230.11 | J64: 229.44 | K64: 224.689 | L64: 230.44 | M64: 0 | N64: 0 | O64: 1 | P64: 468.1 | Q64: 468.1 | R64: 2457.3 | S64: 141.75 | T64: 141.75
A65: 2007-11-19 | B65: 228.33 | C65: 227.32 | E65: 224.3 | F65: 101 | G65: 228.43 | H65: 231.663 | I65: 227.43 | J65: 227.22 | K65: 223.987 | L65: 228.22 | M65: 0 | N65: 0 | O65: 1 | P65: -107 | Q65: -107 | R65: 2350.3 | U65: 135.53 | V65: 135.53
A66: 2007-11-26 | B66: 224.45 | C66: 223.25 | D66: 224.8 | E66: 223 | F66: 120 | G66: 224.55 | H66: 228.41 | I66: 223.55 | J66: 223.15 | K66: 219.29 | L66: 224.15 | M66: 1 | N66: -107 | O66: 1 | P66: -107 | Q66: -107 | R66: 2243.3 | U66: 131.47 | V66: 131.47
A67: 2007-12-03 | B67: 228.36 | C67: 227.49 | D67: 228.47 | E67: 226.52 | F67: 87 | G67: 228.46 | H67: 231.231 | I67: 227.46 | J67: 227.39 | K67: 224.619 | L67: 228.39 | M67: 1 | N67: -107 | O67: 1 | P67: -107 | Q67: -107 | R67: 2136.3 | S67: 139.98 | T67: 139.98 | U67: 134.89 | V67: 134.89
A68: 2007-12-10 | B68: 227.12 | C68: 226.2 | D68: 229.81 | E68: 224.8 | F68: 92 | G68: 227.22 | H68: =+B68+$X$4*F68/100 -> 230.156 | I68: =IF($F68+10+10>$X$8,G68-$X$8/100,G68-($F68+10+10)/100) -> 226.22 | J68: 226.1 | K68: =+C68-$X$4*F68/100 -> 223.164 | L68: =IF($F68+10+10>$X$8,J68+$X$8/100,J68+($F68+10+10)/100) -> 227.1 | M68: 1 | N68: =IF($M68=0,0,IF($X$7>0,IF($D68>G68+($X$7+$X$3)/100,$X$7-$X$3,($I68-$G68)*100-$X$3),IF($D68>$H68,($H68-$G68)*100-$X$3,($I68-$G68)*100-$X$3))) -> -107 | O68: 1 | P68: =IF(O68=0,0,IF($X$7>0,IF($E68<J68-($X$7+$X$3)/100,$X$7-$X$3,(J68-L68)*100-$X$3),IF(E68<K68,(J68-K68)*100-$X$3,(J68-L68)*100-$X$3))) -> -107 | Q68: =IF($X$9=1,IF($X$10=1,P68+N68,P68),IF($X$10=1,N68,0)) -> -107 | R68: 2029.3 | S68: 145.05 | T68: 145.05
A69: 2007-12-17 | B69: 228.91 | C69: 227.88 | D69: 229.13 | E69: 227.37 | F69: 103 | G69: 229.01 | H69: 232.309 | I69: 228.01 | J69: 227.78 | K69: 224.481 | L69: 228.78 | M69: =IF(AND(H69<>"",D69>G69,D69>0,F69<$X$6,F69>$X$5),1,0) -> 1 | N69: -107 | O69: =IF(AND(H69<>"",J69>E69,E69>0,F69<$X$6,F69>$X$5),1,0) -> 1 | P69: -107 | Q69: -107 | R69: 1922.3 | S69: 148.7 | T69: 148.7 | U69: 135.71 | V69: 135.71
A70: 2007-12-24 | B70: 226.45 | C70: 225.97 | E70: 225.09 | F70: 48 | G70: 226.55 | H70: 228.034 | I70: 225.87 | J70: 225.87 | K70: 224.386 | L70: 226.55 | M70: 0 | N70: 0 | O70: 1 | P70: -75 | Q70: -75 | R70: 1847.3 | S70: 151.51 | T70: 151.51 | U70: 145.72 | V70: 145.72
A71: 2007-12-31 | B71: 224.89 | C71: 223.54 | E71: 213.56 | F71: 135 | G71: 224.99 | H71: 229.345 | I71: 223.99 | J71: 223.44 | K71: 219.085 | L71: 224.44 | M71: 0 | N71: 0 | O71: 1 | P71: 428.5 | Q71: 428.5 | R71: 2275.8 | S71: 149.23 | T71: 149.23
A72: 2008-01-07 | B72: 215.06 | C72: 214.04 | D72: 217.3 | F72: 102 | G72: 215.16 | H72: 218.426 | I72: 214.16 | J72: 213.94 | K72: 210.674 | L72: 214.94 | M72: 1 | N72: -107 | O72: 0 | P72: 0 | Q72: 0 | R72: 2275.8 | U72: 141.48 | V72: 141.48
A73: 2008-01-14 | B73: 213.42 | C73: 212.61 | E73: 206.99 | F73: 81 | G73: 213.52 | H73: 216.093 | I73: 212.52 | J73: 212.51 | K73: 209.937 | L73: 213.51 | M73: 0 | N73: 0 | O73: 1 | P73: 250.3 | Q73: 250.3 | R73: 2526.1 | U73: 139.01 | V73: 139.01
A74: 2008-01-21 | B74: 209.37 | C74: 208.38 | E74: 204.71 | F74: 99 | G74: 209.47 | H74: 212.637 | I74: 208.47 | J74: 208.28 | K74: 205.113 | L74: 209.28 | M74: 0 | N74: 0 | O74: 1 | P74: 309.7 | Q74: 309.7 | R74: 2835.8 | S74: 149.09 | T74: 149.09 | U74: 147.29 | V74: 147.29
A75: 2008-01-28 | B75: 212.13 | C75: 211.1 | D75: 212.7 | E75: 209.37 | F75: 103 | G75: 212.23 | H75: 215.529 | I75: 211.23 | J75: 211 | K75: 207.701 | L75: 212 | M75: 1 | N75: -107 | O75: 1 | P75: -107 | Q75: -107 | R75: 2728.8 | U75: 146.36 | V75: 146.36
A76: 2008-02-04 | B76: 210.24 | C76: 209.24 | D76: 212.09 | F76: 100 | G76: 210.34 | H76: 213.54 | I76: 209.34 | J76: 209.14 | K76: 205.94 | L76: 210.14 | M76: 1 | N76: -107 | O76: 0 | P76: 0 | Q76: 0 | R76: 2728.8 | S76: 149.92 | T76: 149.92 | U76: 143.03 | V76: 143.03
A77: 2008-02-11 | B77: 209.5 | C77: 208.8 | D77: 209.91 | E77: 206.79 | F77: 70 | G77: 209.6 | H77: 211.81 | I77: 208.7 | J77: 208.7 | K77: 206.49 | L77: 209.6 | M77: 1 | N77: -97 | O77: 1 | P77: -97 | Q77: -97 | R77: 2631.8 | S77: 151.48 | T77: 151.48 | U77: 149.78 | V77: 149.78
A78: 2008-02-18 | B78: 211.64 | C78: 210.91 | D78: 211.78 | E78: 208.74 | F78: 73 | G78: 211.74 | H78: 214.049 | I78: 210.81 | J78: 210.81 | K78: 208.501 | L78: 211.74 | M78: 1 | N78: -100 | O78: 1 | P78: -100 | Q78: -100 | R78: 2531.8 | S78: 160.44 | T78: 160.44
A79: 2008-02-25 | B79: 211.4 | C79: 210.87 | D79: 211.85 | E79: 210.44 | F79: 53 | G79: 211.5 | H79: 213.149 | I79: 210.77 | J79: 210.77 | K79: 209.121 | L79: 211.5 | M79: 1 | N79: -80 | O79: 1 | P79: -80 | Q79: -80 | R79: 2451.8 | S79: 158.5 | T79: 158.5 | U79: 155.55 | V79: 155.55
A80: 2008-03-03 | B80: 206.06 | C80: 204.34 | D80: 207.95 | E80: 203.48 | F80: 172 | G80: 206.16 | H80: 211.736 | I80: 205.16 | J80: 204.24 | K80: 198.664 | L80: 205.24 | M80: 1 | N80: -107 | O80: 1 | P80: -107 | Q80: -107 | R80: 2344.8 | U80: 156.45 | V80: 156.45
A81: 2008-03-10 | B81: 206.83 | C81: 206.08 | D81: 207.96 | E81: 203.57 | F81: 75 | G81: 206.93 | H81: 209.305 | I81: 205.98 | J81: 205.98 | K81: 203.605 | L81: 206.93 | M81: 1 | N81: -102 | O81: 1 | P81: 230.5 | Q81: 230.5 | R81: 2575.3 | U81: 154.06 | V81: 154.06
A82: 2008-03-17 | B82: 199.83 | C82: 194.86 | D82: 201.79 | E82: 192.52 | F82: 497 | G82: 199.93 | H82: 216.231 | I82: 198.93 | J82: 194.76 | K82: 178.459 | L82: 195.76 | M82: 0 | N82: 0 | O82: 0 | P82: 0 | Q82: 0 | R82: 2575.3 | S82: 158.02 | T82: 158.02 | U82: 156.71 | V82: 156.71
A83: 2008-03-24 | B83: 197.6 | C83: 196.84 | D83: 201.72 | F83: 76 | G83: 197.7 | H83: 200.108 | I83: 196.74 | J83: 196.74 | K83: 194.332 | L83: 197.7 | M83: 1 | N83: 233.8 | O83: 0 | P83: 0 | Q83: 0 | R83: 2575.3 | U83: 146.74 | V83: 146.74
A84: 2008-03-31 | B84: 200.04 | C84: 196.83 | D84: 205.11 | F84: 321 | G84: 200.14 | H84: 210.633 | I84: 199.14 | J84: 196.73 | K84: 186.237 | L84: 197.73 | M84: 0 | N84: 0 | O84: 0 | P84: 0 | Q84: 0 | R84: 2575.3 | S84: 155.15 | T84: 155.15 | U84: 147.13 | V84: 147.13
A85: 2008-04-07 | B85: 203.26 | C85: 202.33 | D85: 204.42 | E85: 198.05 | F85: 93 | G85: 203.36 | H85: 206.329 | I85: 202.36 | J85: 202.23 | K85: 199.261 | L85: 203.23 | M85: 1 | N85: -107 | O85: 1 | P85: 289.9 | Q85: 289.9 | R85: 2865.2 | S85: 156.43 | T85: 156.43 | U85: 152.31 | V85: 152.31
A86: 2008-04-14 | B86: 199.67 | C86: 198.77 | D86: 200.36 | E86: 198.06 | F86: 90 | G86: 199.77 | H86: 202.64 | I86: 198.77 | J86: 198.67 | K86: 195.8 | L86: 199.67 | M86: 1 | N86: -107 | O86: 1 | P86: -107 | Q86: -107 | R86: 2758.2 | S86: 157.46 | T86: 157.46 | U86: 153.85 | V86: 153.85
A87: 2008-04-21 | B87: 208.01 | C87: 207.21 | E87: 203.33 | F87: 80 | G87: 208.11 | H87: 210.65 | I87: 207.11 | J87: 207.11 | K87: 204.57 | L87: 208.11 | M87: 0 | N87: 0 | O87: 1 | P87: 247 | Q87: 247 | R87: 3005.2 | S87: 162.44 | T87: 162.44
A88: 2008-04-28 | B88: 207.54 | C88: 206.97 | D88: 207.82 | E88: 206.73 | F88: 57 | G88: 207.64 | H88: 209.421 | I88: 206.87 | J88: 206.87 | K88: 205.089 | L88: 207.64 | M88: 1 | N88: -84 | O88: 1 | P88: -84 | Q88: -84 | R88: 2921.2 | U88: 155.96 | V88: 155.96
A89: 2008-05-05 | B89: 208.18 | C89: 207.52 | D89: 208.29 | E89: 199.77 | F89: 66 | G89: 208.28 | H89: 210.358 | I89: 207.42 | J89: 207.42 | K89: 205.342 | L89: 208.28 | M89: 1 | N89: -93 | O89: 1 | P89: 200.8 | Q89: 200.8 | R89: 3122 | S89: 156.85 | T89: 156.85 | U89: 153.45 | V89: 153.45
A90: 2008-05-12 | B90: 201.12 | C90: 200.16 | D90: 204.96 | F90: 96 | G90: 201.22 | H90: 204.288 | I90: 200.22 | J90: 200.06 | K90: 196.992 | L90: 201.06 | M90: 1 | N90: 299.8 | O90: 0 | P90: 0 | Q90: 0 | R90: 3122 | S90: 156.8 | T90: 156.8 | U90: 151.05 | V90: 151.05
A91: 2008-05-19 | B91: 204.06 | C91: 203.38 | D91: 204.75 | E91: 202.7 | F91: 68 | G91: 204.16 | H91: 206.304 | I91: 203.28 | J91: 203.28 | K91: 201.136 | L91: 204.16 | M91: 1 | N91: -95 | O91: 1 | P91: -95 | Q91: -95 | R91: 3027 | S91: 152.73 | T91: 152.73 | U91: 150.05 | V91: 150.05
A92: 2008-05-26 | B92: 204.75 | C92: 204.28 | D92: 209.34 | F92: 47 | G92: 204.85 | H92: 206.301 | I92: 204.18 | J92: 204.18 | K92: 202.729 | L92: 204.85 | M92: 1 | N92: 138.1 | O92: 0 | P92: 0 | Q92: 0 | R92: 3027 | S92: 153.22 | T92: 153.22 | U92: 151.32 | V92: 151.32
A93: 2008-06-02 | B93: 208.33 | C93: 207.4 | E93: 203.96 | F93: 93 | G93: 208.43 | H93: 211.399 | I93: 207.43 | J93: 207.3 | K93: 204.331 | L93: 208.3 | M93: 0 | N93: 0 | O93: 1 | P93: 289.9 | Q93: 289.9 | R93: 3316.9
A94: 2008-06-09 | B94: 207 | C94: 205.7 | D94: 210.88 | F94: 130 | G94: 207.1 | H94: 211.29 | I94: 206.1 | J94: 205.6 | K94: 201.41 | L94: 206.6 | M94: 1 | N94: -107 | O94: 0 | P94: 0 | Q94: 0 | R94: 3316.9
A95: 2008-06-16 | B95: 211.16 | C95: 210.32 | D95: 213.27 | F95: 84 | G95: 211.26 | H95: 213.932 | I95: 210.26 | J95: 210.22 | K95: 207.548 | L95: 211.22 | M95: 1 | N95: -107 | O95: 0 | P95: 0 | Q95: 0 | R95: 3316.9
A96: 2008-06-23 | B96: 212.21 | C96: 211.44 | D96: 213.89 | E96: 211.07 | F96: 77 | G96: 212.31 | H96: 214.751 | I96: 211.34 | J96: 211.34 | K96: 208.899 | L96: 212.31 | M96: 1 | N96: -104 | O96: 1 | P96: -104 | Q96: -104 | R96: 3212.9
A97: 2008-06-30 | B97: 212.29 | C97: 211.63 | E97: 209.42 | F97: 66 | G97: 212.39 | H97: 214.468 | I97: 211.53 | J97: 211.53 | K97: 209.452 | L97: 212.39 | M97: 0 | N97: 0 | O97: 1 | P97: 200.8 | Q97: 200.8 | R97: 3413.7
A98: 2008-07-07 | B98: 211.74 | C98: 211.29 | D98: 212.4 | E98: 210.21 | F98: 45 | G98: 211.84 | H98: 213.225 | I98: 211.19 | J98: 211.19 | K98: 209.805 | L98: 211.84 | M98: 1 | N98: -72 | O98: 1 | P98: -72 | Q98: -72 | R98: 3341.7
A99: 2008-07-14 | B99: 211.73 | C99: 211 | D99: 212.25 | E99: 207.97 | F99: 73 | G99: 211.83 | H99: 214.139 | I99: 210.9 | J99: 210.9 | K99: 208.591 | L99: 211.83 | M99: 1 | N99: -100 | O99: 1 | P99: 223.9 | Q99: 223.9 | R99: 3565.6
A100: 2008-07-21 | B100: 213.59 | C100: 212.8 | D100: 215.84 | E100: 212.12 | F100: 79 | G100: 213.69 | H100: 216.197 | I100: 212.7 | J100: 212.7 | K100: 210.193 | L100: 213.69 | M100: 1 | N100: -106 | O100: 1 | P100: -106 | Q100: -106 | R100: 3459.6
A101: 2008-07-28 | B101: 214.83 | C101: 214.35 | E101: 211.98 | F101: 48 | G101: 214.93 | H101: 216.414 | I101: 214.25 | J101: 214.25 | K101: 212.766 | L101: 214.93 | M101: 0 | N101: 0 | O101: 1 | P101: 141.4 | Q101: 141.4 | R101: 3601
A102: 2008-08-04 | B102: 212.74 | C102: 212.16 | D102: 213.89 | E102: 210.56 | F102: 58 | G102: 212.84 | H102: 214.654 | I102: 212.06 | J102: 212.06 | K102: 210.246 | L102: 212.84 | M102: 1 | N102: -85 | O102: 1 | P102: -85 | Q102: -85 | R102: 3516
A103: 2008-08-11 | B103: 211.2 | C103: 209.69 | D103: 211.52 | E103: 202.48 | F103: 151 | G103: 211.3 | H103: 216.183 | I103: 210.3 | J103: 209.59 | K103: 204.707 | L103: 210.59 | M103: 1 | N103: -107 | O103: 1 | P103: 481.3 | Q103: 481.3 | R103: 3997.3
A104: 2008-08-18 | B104: 206.1 | C104: 205.3 | D104: 206.23 | E104: 201.76 | F104: =(B104-C104)*100 -> 80 | G104: =+B104+0.1 -> 206.2 | H104: =+B104+$X$4*F104/100 -> 208.74 | I104: 205.2 | J104: =+C104-0.1 -> 205.2 | K104: =+C104-$X$4*F104/100 -> 202.66 | L104: 206.2 | M104: 1 | N104: -107 | O104: 1 | P104: 247 | Q104: 247 | R104: =+R103+Q104 -> 4244.3
A105: 2008-08-25 | B105: 203.82 | C105: 202.75 | E105: 197.6 | F105: 107 | G105: 203.92 | H105: 207.351 | I105: 202.92 | J105: 202.65 | K105: 199.219 | L105: 203.65 | M105: 0 | N105: 0 | O105: 1 | P105: 336.1 | Q105: 336.1 | R105: 4580.4
A106: 2008-09-01 | B106: 196.91 | C106: 195.69 | E106: 186.14 | F106: 122 | G106: 197.01 | H106: 200.936 | I106: 196.01 | J106: 195.59 | K106: 191.664 | L106: 196.59 | M106: 0 | N106: 0 | O106: 1 | P106: 385.6 | Q106: 385.6 | R106: 4966
A107: 2008-09-08 | B107: 195.55 | C107: 192.18 | E107: 185.87 | F107: 337 | G107: 195.65 | H107: 206.671 | I107: 194.65 | J107: 192.08 | K107: 181.059 | L107: 193.08 | M107: 0 | N107: 0 | O107: 0 | P107: 0 | Q107: 0 | R107: 4966
A108: 2008-09-15 | B108: 192.16 | C108: 190.27 | E108: 184.47 | F108: 189 | G108: 192.26 | H108: 198.397 | I108: 191.26 | J108: 190.17 | K108: 184.033 | L108: 191.17 | M108: 0 | N108: 0 | O108: 1 | P108: -107 | Q108: -107 | R108: 4859
A109: 2008-09-22 | B109: 196.59 | C109: 194.97 | D109: 197.41 | E109: 194.27 | F109: 162 | G109: 196.69 | H109: 201.936 | I109: 195.69 | J109: 194.87 | K109: 189.624 | L109: 195.87 | M109: 1 | N109: -107 | O109: 1 | P109: -107 | Q109: -107 | R109: 4752
A110: 2008-09-29 | B110: 195.35 | C110: 194.06 | E110: 184.68 | F110: 129 | G110: 195.45 | H110: 199.607 | I110: 194.45 | J110: 193.96 | K110: 189.803 | L110: 194.96 | M110: 0 | N110: 0 | O110: 1 | P110: 408.7 | Q110: 408.7 | R110: 5160.7
A111: 2008-10-06 | B111: 186.01 | C111: 183.89 | E111: 166.04 | F111: 212 | G111: 186.11 | H111: 193.006 | I111: 185.11 | J111: 183.79 | K111: 176.894 | L111: 184.79 | M111: 0 | N111: 0 | O111: 1 | P111: 682.6 | Q111: 682.6 | R111: 5843.3
A112: 2008-10-13 | B112: 173.44 | C112: 171.92 | D112: 181.36 | E112: 170.2 | F112: 152 | G112: 173.54 | H112: 178.456 | I112: 172.54 | J112: 171.82 | K112: 166.904 | L112: 172.82 | M112: 1 | N112: 484.6 | O112: 1 | P112: -107 | Q112: -107 | R112: 5736.3
A113: 2008-10-20 | B113: 176.52 | C113: 175.29 | D113: 179.18 | E113: 138.98 | F113: 123 | G113: 176.62 | H113: 180.579 | I113: 175.62 | J113: 175.19 | K113: 171.231 | L113: 176.19 | M113: 1 | N113: -107 | O113: 1 | P113: 388.9 | Q113: 388.9 | R113: 6125.2
A114: 2008-10-27 | B114: 149.86 | C114: 144.24 | D114: 151.29 | E114: 140.63 | F114: 562 | G114: 149.96 | H114: 168.406 | I114: 148.96 | J114: 144.14 | K114: 125.694 | L114: 145.14 | M114: 0 | N114: 0 | O114: 0 | P114: 0 | Q114: 0 | R114: 6125.2
A115: 2008-11-03 | B115: 160.63 | C115: 158.14 | D115: 163.31 | E115: 153.69 | F115: 249 | G115: 160.73 | H115: 168.847 | I115: 159.73 | J115: 158.04 | K115: 149.923 | L115: 159.04 | M115: 0 | N115: 0 | O115: 0 | P115: 0 | Q115: 0 | R115: 6125.2
A116: 2008-11-10 | B116: 157.51 | C116: 155.37 | E116: 145.82 | F116: 214 | G116: 157.61 | H116: 164.572 | I116: 156.61 | J116: 155.27 | K116: 148.308 | L116: 156.27 | M116: 0 | N116: 0 | O116: 1 | P116: 689.2 | Q116: 689.2 | R116: 6814.4
A117: 2008-11-17 | B117: 143.09 | C117: 140.46 | D117: 147.87 | F117: 263 | G117: 143.19 | H117: 151.769 | I117: 142.19 | J117: 140.36 | K117: 131.781 | L117: 141.36 | M117: 0 | N117: 0 | O117: 0 | P117: 0 | Q117: 0 | R117: 6814.4
A118: 2008-11-24 | B118: 143.66 | C118: 141.05 | D118: 148.58 | F118: 261 | G118: 143.76 | H118: 152.273 | I118: 142.76 | J118: 140.95 | K118: 132.437 | L118: 141.95 | M118: 0 | N118: 0 | O118: 0 | P118: 0 | Q118: 0 | R118: 6814.4
A119: 2008-12-01 | B119: 147.1 | C119: 145.55 | E119: 134.12 | F119: 155 | G119: 147.2 | H119: 152.215 | I119: 146.2 | J119: 145.45 | K119: 140.435 | L119: 146.45 | M119: 0 | N119: 0 | O119: 1 | P119: 494.5 | Q119: 494.5 | R119: 7308.9
A120: 2008-12-08 | B120: 136.98 | C120: 136.08 | D120: 140.74 | F120: 90 | G120: 137.08 | H120: 139.95 | I120: 136.08 | J120: 135.98 | K120: 133.11 | L120: 136.98 | M120: 1 | N120: 280 | O120: 0 | P120: 0 | Q120: 0 | R120: 7308.9
A121: 2008-12-15 | B121: 137.31 | C121: 135.65 | D121: 139.21 | E121: 135.28 | F121: 166 | G121: 137.41 | H121: 142.788 | I121: 136.41 | J121: 135.55 | K121: 130.172 | L121: 136.55 | M121: 1 | N121: -107 | O121: 1 | P121: -107 | Q121: -107 | R121: 7201.9
A122: 2008-12-22 | B122: 134.67 | C122: 133.15 | E122: 132.05 | F122: 152 | G122: 134.77 | H122: 139.686 | I122: 133.77 | J122: 133.05 | K122: 128.134 | L122: 134.05 | M122: 0 | N122: 0 | O122: 1 | P122: -107 | Q122: -107 | R122: 7094.9
A123: 2008-12-29 | B123: 133.4 | C123: 132.62 | E123: 129.83 | F123: 78 | G123: 133.5 | H123: 135.974 | I123: 132.52 | J123: 132.52 | K123: 130.046 | L123: 133.5 | M123: 0 | N123: 0 | O123: 1 | P123: 240.4 | Q123: 240.4 | R123: 7335.3
A124: 2009-01-05 | B124: 134.14 | C124: 133.04 | D124: 141.54 | E124: 132.84 | F124: 110 | G124: 134.24 | H124: 137.77 | I124: 133.24 | J124: 132.94 | K124: 129.41 | L124: 133.94 | M124: 1 | N124: 346 | O124: 1 | P124: -107 | Q124: -107 | R124: 7228.3
A125: 2009-01-12 | B125: 136.5 | C125: 135.48 | E125: 128.82 | F125: 102 | G125: 136.6 | H125: 139.866 | I125: 135.6 | J125: 135.38 | K125: 132.114 | L125: 136.38 | M125: 0 | N125: 0 | O125: 1 | P125: 319.6 | Q125: 319.6 | R125: 7547.9
A126: 2009-01-19 | B126: 135.82 | C126: 134.15 | E126: 119.4 | F126: 167 | G126: 135.92 | H126: 141.331 | I126: 134.92 | J126: 134.05 | K126: 128.639 | L126: 135.05 | M126: 0 | N126: 0 | O126: 1 | P126: 534.1 | Q126: 534.1 | R126: 8082
A127: 2009-01-26 | B127: 121.84 | C127: 119.69 | D127: 129.69 | F127: 215 | G127: 121.94 | H127: 128.935 | I127: 120.94 | J127: 119.59 | K127: 112.595 | L127: 120.59 | M127: 1 | N127: 692.5 | O127: 0 | P127: 0 | Q127: 0 | R127: 8082
A128: 2009-02-02 | B128: 130.36 | C128: 128.87 | D128: 130.66 | E128: 125.3 | F128: 149 | G128: 130.46 | H128: 135.277 | I128: 129.46 | J128: 128.77 | K128: 123.953 | L128: 129.77 | M128: 1 | N128: -107 | O128: 1 | P128: -107 | Q128: -107 | R128: 7975
A129: 2009-02-09 | B129: 137.32 | C129: 135.15 | E129: 127.11 | F129: 217 | G129: 137.42 | H129: 144.481 | I129: 136.42 | J129: 135.05 | K129: 127.989 | L129: 136.05 | M129: 0 | N129: 0 | O129: 1 | P129: 699.1 | Q129: 699.1 | R129: 8674.1
A130: 2009-02-16 | B130: 131.07 | C130: 130.08 | D130: 131.43 | E130: 129.62 | F130: 99 | G130: 131.17 | H130: 134.337 | I130: 130.17 | J130: 129.98 | K130: 126.813 | L130: 130.98 | M130: 1 | N130: -107 | O130: 1 | P130: -107 | Q130: -107 | R130: 8567.1
A131: 2009-02-23 | B131: 135.28 | C131: 133.79 | D131: 141.75 | F131: 149 | G131: 135.38 | H131: 140.197 | I131: 134.38 | J131: 133.69 | K131: 128.873 | L131: 134.69 | M131: 1 | N131: 474.7 | O131: 0 | P131: 0 | Q131: 0 | R131: 8567.1
A132: 2009-03-02 | B132: 139.75 | C132: 137.71 | E132: 135.53 | F132: 204 | G132: 139.85 | H132: 146.482 | I132: =IF($F132+10+10>$X$8,G132-$X$8/100,G132-($F132+10+10)/100) -> 138.85 | J132: 137.61 | K132: 130.978 | L132: =IF($F132+10+10>$X$8,J132+$X$8/100,J132+($F132+10+10)/100) -> 138.61 | M132: 0 | N132: =IF($M132=0,0,IF($X$7>0,IF($D132>G132+($X$7+$X$3)/100,$X$7-$X$3,($I132-$G132)*100-$X$3),IF($D132>$H132,($H132-$G132)*100-$X$3,($I132-$G132)*100-$X$3))) -> 0 | O132: 1 | P132: =IF(O132=0,0,IF($X$7>0,IF($E132<J132-($X$7+$X$3)/100,$X$7-$X$3,(J132-L132)*100-$X$3),IF(E132<K132,(J132-K132)*100-$X$3,(J132-L132)*100-$X$3))) -> -107 | Q132: =IF($X$9=1,IF($X$10=1,P132+N132,P132),IF($X$10=1,N132,0)) -> -107 | R132: 8460.1
A133: 2009-03-09 | B133: 139.3 | C133: 138.4 | E133: 131.47 | F133: 90 | G133: 139.4 | H133: 142.27 | I133: 138.4 | J133: 138.3 | K133: 135.43 | L133: 139.3 | M133: =IF(AND(H133<>"",D133>G133,D133>0,F133<$X$6,F133>$X$5),1,0) -> 0 | N133: 0 | O133: =IF(AND(H133<>"",J133>E133,E133>0,F133<$X$6,F133>$X$5),1,0) -> 1 | P133: 280 | Q133: 280 | R133: 8740.1
A134: 2009-03-16 | B134: 137.88 | C134: 135.92 | D134: 139.98 | E134: 134.89 | F134: 196 | G134: 137.98 | H134: 144.348 | I134: 136.98 | J134: 135.82 | K134: 129.452 | L134: 136.82 | M134: 1 | N134: -107 | O134: 1 | P134: -107 | Q134: -107 | R134: 8633.1
A135: 2009-03-23 | B135: 139.66 | C135: 138.17 | D135: 145.05 | F135: 149 | G135: 139.76 | H135: 144.577 | I135: 138.76 | J135: 138.07 | K135: 133.253 | L135: 139.07 | M135: 1 | N135: 474.7 | O135: 0 | P135: 0 | Q135: 0 | R135: 8633.1
A136: 2009-03-30 | B136: 140.43 | C136: 139.41 | D136: 148.7 | E136: 135.71 | F136: 102 | G136: 140.53 | H136: 143.796 | I136: 139.53 | J136: 139.31 | K136: 136.044 | L136: 140.31 | M136: 1 | N136: 319.6 | O136: 1 | P136: 319.6 | Q136: 319.6 | R136: 8952.7
A137: 2009-04-06 | B137: 150.05 | C137: 148.51 | D137: 151.51 | E137: 145.72 | F137: 154 | G137: 150.15 | H137: 155.132 | I137: 149.15 | J137: 148.41 | K137: 143.428 | L137: 149.41 | M137: 1 | N137: -107 | O137: 1 | P137: -107 | Q137: -107 | R137: 8845.7
A138: 2009-04-13 | B138: 147.1 | C138: 146.4 | D138: 149.23 | F138: 70 | G138: 147.2 | H138: 149.41 | I138: 146.3 | J138: 146.3 | K138: 144.09 | L138: 147.2 | M138: 1 | N138: -97 | O138: 0 | P138: 0 | Q138: 0 | R138: 8845.7
A139: 2009-04-20 | B139: 147.04 | C139: 146.02 | E139: 141.48 | F139: 102 | G139: 147.14 | H139: 150.406 | I139: 146.14 | J139: 145.92 | K139: 142.654 | L139: 146.92 | M139: 0 | N139: 0 | O139: 1 | P139: 319.6 | Q139: 319.6 | R139: 9165.3
A140: 2009-04-27 | B140: 142.03 | C140: 141.44 | E140: 139.01 | F140: 59 | G140: 142.13 | H140: 143.977 | I140: 141.34 | J140: 141.34 | K140: 139.493 | L140: 142.13 | M140: 0 | N140: 0 | O140: 1 | P140: 177.7 | Q140: 177.7 | R140: 9343
A141: 2009-05-04 | B141: 148.61 | C141: 147.85 | D141: 149.09 | E141: 147.29 | F141: 76 | G141: 148.71 | H141: 151.118 | I141: 147.75 | J141: 147.75 | K141: 145.342 | L141: 148.71 | M141: 1 | N141: -103 | O141: 1 | P141: -103 | Q141: -103 | R141: 9240
A142: 2009-05-11 | B142: 150.43 | C142: 149.63 | E142: 146.36 | F142: 80 | G142: 150.53 | H142: 153.07 | I142: 149.53 | J142: 149.53 | K142: 146.99 | L142: 150.53 | M142: 0 | N142: 0 | O142: 1 | P142: 247 | Q142: 247 | R142: 9487
A143: 2009-05-18 | B143: 144.29 | C143: 143.19 | D143: 149.92 | E143: 143.03 | F143: 110 | G143: 144.39 | H143: 147.92 | I143: 143.39 | J143: 143.09 | K143: 139.56 | L143: 144.09 | M143: 1 | N143: 346 | O143: 1 | P143: -107 | Q143: -107 | R143: 9380
A144: 2009-05-25 | B144: 150.97 | C144: 149.98 | D144: 151.48 | E144: 149.78 | F144: 99 | G144: 151.07 | H144: 154.237 | I144: 150.07 | J144: 149.88 | K144: 146.713 | L144: 150.88 | M144: 1 | N144: -107 | O144: 1 | P144: -107 | Q144: -107 | R144: 9273
A145: 2009-06-01 | B145: 154.47 | C145: 153.5 | D145: 160.44 | F145: 97 | G145: 154.57 | H145: 157.671 | I145: 153.57 | J145: 153.4 | K145: 150.299 | L145: 154.4 | M145: 1 | N145: 303.1 | O145: 0 | P145: 0 | Q145: 0 | R145: 9273
A146: 2009-06-08 | B146: 157.76 | C146: 156.98 | D146: 158.5 | E146: 155.55 | F146: 78 | G146: 157.86 | H146: 160.334 | I146: 156.88 | J146: 156.88 | K146: 154.406 | L146: 157.86 | M146: 1 | N146: -105 | O146: 1 | P146: -105 | Q146: -105 | R146: 9168
A147: 2009-06-15 | B147: 161.8 | C147: 160.92 | E147: 156.45 | F147: 88 | G147: 161.9 | H147: 164.704 | I147: 160.9 | J147: 160.82 | K147: 158.016 | L147: 161.82 | M147: 0 | N147: 0 | O147: 1 | P147: 273.4 | Q147: 273.4 | R147: 9441.4
A148: 2009-06-22 | B148: 158.88 | C148: 158.01 | E148: 154.06 | F148: 87 | G148: 158.98 | H148: 161.751 | I148: 157.98 | J148: 157.91 | K148: 155.139 | L148: 158.91 | M148: 0 | N148: 0 | O148: 1 | P148: 270.1 | Q148: 270.1 | R148: 9711.5
A149: 2009-06-29 | B149: 157.43 | C149: 156.89 | D149: 158.02 | E149: 156.71 | F149: 54 | G149: 157.53 | H149: 159.212 | I149: 156.79 | J149: 156.79 | K149: 155.108 | L149: 157.53 | M149: 1 | N149: -81 | O149: 1 | P149: -81 | Q149: -81 | R149: 9630.5
A150: 2009-07-06 | B150: 156.83 | C150: 155.9 | E150: 146.74 | F150: 93 | G150: 156.93 | H150: 159.899 | I150: 155.93 | J150: 155.8 | K150: 152.831 | L150: 156.8 | M150: 0 | N150: 0 | O150: 1 | P150: 289.9 | Q150: 289.9 | R150: 9920.4
A151: 2009-07-13 | B151: 150.67 | C151: 149.53 | D151: 155.15 | E151: 147.13 | F151: 114 | G151: 150.77 | H151: 154.432 | I151: 149.77 | J151: 149.43 | K151: 145.768 | L151: 150.43 | M151: 1 | N151: 359.2 | O151: 1 | P151: -107 | Q151: -107 | R151: 9813.4
A152: 2009-07-20 | B152: 154.87 | C152: 153.69 | D152: 156.43 | E152: 152.31 | F152: 118 | G152: 154.97 | H152: 158.764 | I152: 153.97 | J152: 153.59 | K152: 149.796 | L152: 154.59 | M152: 1 | N152: -107 | O152: 1 | P152: -107 | Q152: -107 | R152: 9706.4
A153: 2009-07-27 | B153: 156.17 | C153: 155.15 | D153: 157.46 | E153: 153.85 | F153: 102 | G153: 156.27 | H153: 159.536 | I153: 155.27 | J153: 155.05 | K153: 151.784 | L153: 156.05 | M153: 1 | N153: -107 | O153: 1 | P153: -107 | Q153: -107 | R153: 9599.4
A154: 2009-08-03 | B154: 158.91 | C154: 158.08 | D154: 162.44 | F154: 83 | G154: 159.01 | H154: 161.649 | I154: 158.01 | J154: 157.98 | K154: 155.341 | L154: 158.98 | M154: 1 | N154: 256.9 | O154: 0 | P154: 0 | Q154: 0 | R154: 9599.4
A155: 2009-08-10 | B155: 162.93 | C155: 162.12 | E155: 155.96 | F155: 81 | G155: 163.03 | H155: 165.603 | I155: 162.03 | J155: 162.02 | K155: 159.447 | L155: 163.02 | M155: 0 | N155: 0 | O155: 1 | P155: 250.3 | Q155: 250.3 | R155: 9849.7
A156: 2009-08-17 | B156: 156.52 | C156: 155.55 | D156: 156.85 | E156: 153.45 | F156: 97 | G156: 156.62 | H156: 159.721 | I156: 155.62 | J156: 155.45 | K156: 152.349 | L156: 156.45 | M156: 1 | N156: -107 | O156: 1 | P156: -107 | Q156: -107 | R156: 9742.7
A157: 2009-08-24 | B157: 156.6 | C157: 155.52 | D157: 156.8 | E157: 151.05 | F157: 108 | G157: 156.7 | H157: 160.164 | I157: 155.7 | J157: 155.42 | K157: 151.956 | L157: 156.42 | M157: 1 | N157: -107 | O157: 1 | P157: 339.4 | Q157: 339.4 | R157: 10082.1
A158: 2009-08-31 | B158: 152.15 | C158: 150.92 | D158: 152.73 | E158: 150.05 | F158: 123 | G158: 152.25 | H158: 156.209 | I158: 151.25 | J158: 150.82 | K158: 146.861 | L158: 151.82 | M158: 1 | N158: -107 | O158: 1 | P158: -107 | Q158: -107 | R158: 9975.1
A159: 2009-09-07 | B159: 153.01 | C159: 152.19 | D159: 153.22 | E159: 151.32 | F159: 82 | G159: 153.11 | H159: 155.716 | I159: 152.11 | J159: 152.09 | K159: 149.484 | L159: 153.09 | M159: 1 | N159: -107 | O159: 1 | P159: -107 | Q159: -107 | R159: 9868.1
A160: 2009-09-14 | B160: 151.08 | C160: 150.35 | F160: 73 | G160: 151.18 | H160: 153.489 | I160: 150.25 | J160: 150.25 | K160: 147.941 | L160: 151.18 | M160: 0 | N160: 0 | O160: 0 | P160: 0 | Q160: 0 | R160: 9868.1
F161: 0 | G161: 0.1 | H161: 0 | I161: -0.1 | J161: -0.1 | K161: 0 | L161: 0.1 | M161: 0 | N161: 0 | O161: 0 | P161: 0 | Q161: 0 | R161: 9868.1
F162: 0 | G162: 0.1 | H162: 0 | I162: -0.1 | J162: -0.1 | K162: 0 | L162: 0.1 | M162: 0 | N162: 0 | O162: 0 | P162: 0 | Q162: 0 | R162: 9868.1
F163: 0 | G163: 0.1 | H163: 0 | I163: -0.1 | J163: -0.1 | K163: 0 | L163: 0.1 | M163: 0 | N163: 0 | O163: 0 | P163: 0 | Q163: 0 | R163: 9868.1
F164: 0 | G164: 0.1 | H164: 0 | I164: -0.1 | J164: -0.1 | K164: 0 | L164: 0.1 | M164: 0 | N164: 0 | O164: 0 | P164: 0 | Q164: 0 | R164: 9868.1
F165: 0 | G165: 0.1 | H165: 0 | I165: -0.1 | J165: -0.1 | K165: 0 | L165: 0.1 | M165: 0 | N165: 0 | O165: 0 | P165: 0 | Q165: 0 | R165: 9868.1
F166: 0 | G166: 0.1 | H166: 0 | I166: -0.1 | J166: -0.1 | K166: 0 | L166: 0.1 | M166: 0 | N166: 0 | O166: 0 | P166: 0 | Q166: 0 | R166: 9868.1
F167: 0 | G167: 0.1 | H167: 0 | I167: -0.1 | J167: -0.1 | K167: 0 | L167: 0.1 | M167: 0 | N167: 0 | O167: 0 | P167: 0 | Q167: 0 | R167: 9868.1
F168: =(B168-C168)*100 -> 0 | G168: =+B168+0.1 -> 0.1 | H168: =+B168+$X$4*F168/100 -> 0 | I168: -0.1 | J168: =+C168-0.1 -> -0.1 | K168: =+C168-$X$4*F168/100 -> 0 | L168: 0.1 | M168: 0 | N168: 0 | O168: 0 | P168: 0 | Q168: 0 | R168: =+R167+Q168 -> 9868.1
F169: 0 | G169: 0.1 | H169: 0 | I169: -0.1 | J169: -0.1 | K169: 0 | L169: 0.1 | M169: 0 | N169: 0 | O169: 0 | P169: 0 | Q169: 0 | R169: 9868.1
F170: 0 | G170: 0.1 | H170: 0 | I170: -0.1 | J170: -0.1 | K170: 0 | L170: 0.1 | M170: 0 | N170: 0 | O170: 0 | P170: 0 | Q170: 0 | R170: 9868.1
F171: 0 | G171: 0.1 | H171: 0 | I171: -0.1 | J171: -0.1 | K171: 0 | L171: 0.1 | M171: 0 | N171: 0 | O171: 0 | P171: 0 | Q171: 0 | R171: 9868.1
F172: 0 | G172: 0.1 | H172: 0 | I172: -0.1 | J172: -0.1 | K172: 0 | L172: 0.1 | M172: 0 | N172: 0 | O172: 0 | P172: 0 | Q172: 0 | R172: 9868.1
F173: 0 | G173: 0.1 | H173: 0 | I173: -0.1 | J173: -0.1 | K173: 0 | L173: 0.1 | M173: 0 | N173: 0 | O173: 0 | P173: 0 | Q173: 0 | R173: 9868.1
F174: 0 | G174: 0.1 | H174: 0 | I174: -0.1 | J174: -0.1 | K174: 0 | L174: 0.1 | M174: 0 | N174: 0 | O174: 0 | P174: 0 | Q174: 0 | R174: 9868.1
F175: 0 | G175: 0.1 | H175: 0 | I175: -0.1 | J175: -0.1 | K175: 0 | L175: 0.1 | M175: 0 | N175: 0 | O175: 0 | P175: 0 | Q175: 0 | R175: 9868.1
F176: 0 | G176: 0.1 | H176: 0 | I176: -0.1 | J176: -0.1 | K176: 0 | L176: 0.1 | M176: 0 | N176: 0 | O176: 0 | P176: 0 | Q176: 0 | R176: 9868.1
F177: 0 | G177: 0.1 | H177: 0 | I177: -0.1 | J177: -0.1 | K177: 0 | L177: 0.1 | M177: 0 | N177: 0 | O177: 0 | P177: 0 | Q177: 0 | R177: 9868.1
F178: 0 | G178: 0.1 | H178: 0 | I178: -0.1 | J178: -0.1 | K178: 0 | L178: 0.1 | M178: 0 | N178: 0 | O178: 0 | P178: 0 | Q178: 0 | R178: 9868.1
F179: 0 | G179: 0.1 | H179: 0 | I179: -0.1 | J179: -0.1 | K179: 0 | L179: 0.1 | M179: 0 | N179: 0 | O179: 0 | P179: 0 | Q179: 0 | R179: 9868.1
F180: 0 | G180: 0.1 | H180: 0 | I180: -0.1 | J180: -0.1 | K180: 0 | L180: 0.1 | M180: 0 | N180: 0 | O180: 0 | P180: 0 | Q180: 0 | R180: 9868.1
F181: 0 | G181: 0.1 | H181: 0 | I181: -0.1 | J181: -0.1 | K181: 0 | L181: 0.1 | M181: 0 | N181: 0 | O181: 0 | P181: 0 | Q181: 0 | R181: 9868.1
F182: 0 | G182: 0.1 | H182: 0 | I182: -0.1 | J182: -0.1 | K182: 0 | L182: 0.1 | M182: 0 | N182: 0 | O182: 0 | P182: 0 | Q182: 0 | R182: 9868.1
F183: 0 | G183: 0.1 | H183: 0 | I183: -0.1 | J183: -0.1 | K183: 0 | L183: 0.1 | M183: 0 | N183: 0 | O183: 0 | P183: 0 | Q183: 0 | R183: 9868.1
F184: 0 | G184: 0.1 | H184: 0 | I184: -0.1 | J184: -0.1 | K184: 0 | L184: 0.1 | M184: 0 | N184: 0 | O184: 0 | P184: 0 | Q184: 0 | R184: 9868.1
F185: 0 | G185: 0.1 | H185: 0 | I185: -0.1 | J185: -0.1 | K185: 0 | L185: 0.1 | M185: 0 | N185: 0 | O185: 0 | P185: 0 | Q185: 0 | R185: 9868.1
F186: 0 | G186: 0.1 | H186: 0 | I186: -0.1 | J186: -0.1 | K186: 0 | L186: 0.1 | M186: 0 | N186: 0 | O186: 0 | P186: 0 | Q186: 0 | R186: 9868.1
F187: 0 | G187: 0.1 | H187: 0 | I187: -0.1 | J187: -0.1 | K187: 0 | L187: 0.1 | M187: 0 | N187: 0 | O187: 0 | P187: 0 | Q187: 0 | R187: 9868.1
F188: 0 | G188: 0.1 | H188: 0 | I188: -0.1 | J188: -0.1 | K188: 0 | L188: 0.1 | M188: 0 | N188: 0 | O188: 0 | P188: 0 | Q188: 0 | R188: 9868.1
F189: 0 | G189: 0.1 | H189: 0 | I189: -0.1 | J189: -0.1 | K189: 0 | L189: 0.1 | M189: 0 | N189: 0 | O189: 0 | P189: 0 | Q189: 0 | R189: 9868.1
F190: 0 | G190: 0.1 | H190: 0 | I190: -0.1 | J190: -0.1 | K190: 0 | L190: 0.1 | M190: 0 | N190: 0 | O190: 0 | P190: 0 | Q190: 0 | R190: 9868.1
F191: 0 | G191: 0.1 | H191: 0 | I191: -0.1 | J191: -0.1 | K191: 0 | L191: 0.1 | M191: 0 | N191: 0 | O191: 0 | P191: 0 | Q191: 0 | R191: 9868.1
F192: 0 | G192: 0.1 | H192: 0 | I192: -0.1 | J192: -0.1 | K192: 0 | L192: 0.1 | M192: 0 | N192: 0 | O192: 0 | P192: 0 | Q192: 0 | R192: 9868.1
F193: 0 | G193: 0.1 | H193: 0 | I193: -0.1 | J193: -0.1 | K193: 0 | L193: 0.1 | M193: 0 | N193: 0 | O193: 0 | P193: 0 | Q193: 0 | R193: 9868.1
F194: 0 | G194: 0.1 | H194: 0 | I194: -0.1 | J194: -0.1 | K194: 0 | L194: 0.1 | M194: 0 | N194: 0 | O194: 0 | P194: 0 | Q194: 0 | R194: 9868.1
F195: 0 | G195: 0.1 | H195: 0 | I195: -0.1 | J195: -0.1 | K195: 0 | L195: 0.1 | M195: 0 | N195: 0 | O195: 0 | P195: 0 | Q195: 0 | R195: 9868.1
F196: 0 | G196: 0.1 | H196: 0 | I196: =IF($F196+10+10>$X$8,G196-$X$8/100,G196-($F196+10+10)/100) -> -0.1 | J196: -0.1 | K196: 0 | L196: =IF($F196+10+10>$X$8,J196+$X$8/100,J196+($F196+10+10)/100) -> 0.1 | M196: 0 | N196: =IF($M196=0,0,IF($X$7>0,IF($D196>G196+($X$7+$X$3)/100,$X$7-$X$3,($I196-$G196)*100-$X$3),IF($D196>$H196,($H196-$G196)*100-$X$3,($I196-$G196)*100-$X$3))) -> 0 | O196: 0 | P196: =IF(O196=0,0,IF($X$7>0,IF($E196<J196-($X$7+$X$3)/100,$X$7-$X$3,(J196-L196)*100-$X$3),IF(E196<K196,(J196-K196)*100-$X$3,(J196-L196)*100-$X$3))) -> 0 | Q196: =IF($X$9=1,IF($X$10=1,P196+N196,P196),IF($X$10=1,N196,0)) -> 0 | R196: 9868.1
F197: 0 | G197: 0.1 | H197: 0 | I197: -0.1 | J197: -0.1 | K197: 0 | L197: 0.1 | M197: =IF(AND(H197<>"",D197>G197,D197>0,F197<$X$6,F197>$X$5),1,0) -> 0 | N197: 0 | O197: =IF(AND(H197<>"",J197>E197,E197>0,F197<$X$6,F197>$X$5),1,0) -> 0 | P197: 0 | Q197: 0 | R197: 9868.1
F198: 0 | G198: 0.1 | H198: 0 | I198: -0.1 | J198: -0.1 | K198: 0 | L198: 0.1 | M198: 0 | N198: 0 | O198: 0 | P198: 0 | Q198: 0 | R198: 9868.1
F199: 0 | G199: 0.1 | H199: 0 | I199: -0.1 | J199: -0.1 | K199: 0 | L199: 0.1 | M199: 0 | N199: 0 | O199: 0 | P199: 0 | Q199: 0 | R199: 9868.1
F200: 0 | G200: 0.1 | H200: 0 | I200: -0.1 | J200: -0.1 | K200: 0 | L200: 0.1 | M200: 0 | N200: 0 | O200: 0 | P200: 0 | Q200: 0 | R200: 9868.1
... 51 more rows
